fUSD/lending_fUSD_20240609
["ID","MTS","AMOUNT","RATE_DAILY","PERIOD"]
[328880705,1717949444185,-152.85427655,0.00026047,2]
[328880706,1717949444195,-158.08203132,0.00026061,2]
[328880707,1717949444205,-559.63072853,0.00026247,2]
[328880708,1717949444215,-883.66261701,0.00026247,2]
[328880709,1717949444224,-184.26629586,0.0002636,2]
[328880710,1717949444233,-587.52744056,0.00026378,2]
[328880711,1717949444242,-1000.0,0.00026486,2]
[328880712,1717949444252,-163.08617108,0.00026513,2]
[328880713,1717949444262,-158.08203133,0.00026584,2]
[328880714,1717949444272,-153.34121951,0.00026595,2]
[328880715,1717949444282,-154.46740009,0.00026597,2]
[328880716,1717949444292,-324.44,0.00026598,2]
[328880717,1717949444302,-4564.11086622,0.00026607,2]
[328880718,1717949444312,-153.34121951,0.00026632,2]
[328880719,1717949444322,-154.02592654,0.00026634,2]
[328880720,1717949444332,-158.17438114,0.00026774,2]
[328880721,1717949444342,-153.34121951,0.00026828,2]
[328880722,1717949444352,-154.98577541,0.00026882,2]
[328880723,1717949444362,-154.46740009,0.00026886,2]
[328880724,1717949444374,-4029.88662948,0.00027,2]
[328880725,1717949444384,-17796.04120922,0.00027,2]
[328880726,1717949444395,-3407.539151,0.00027,2]
[328880727,1717949444405,-1300.0,0.00027,2]
[328880728,1717949444415,-200.0,0.00027,2]
[328880729,1717949444427,-154.02592654,0.00027074,2]
[328880730,1717949444438,-151.0,0.00027094,7]
[328880731,1717949444448,-163.08617108,0.00027136,2]
[328880732,1717949444459,-163.08617108,0.00027138,2]
[328880733,1717949444472,-154.46740011,0.00027141,2]
[328880734,1717949444482,-559.63072853,0.0002716,2]
[328880735,1717949444493,-883.66261701,0.0002716,2]
[328880736,1717949444503,-185.61446945,0.000273,2]
[328880737,1717949444514,-1234.0,0.000273,2]
[328880738,1717949444525,-166.11284733,0.000273,2]
[328880739,1717949444537,-151.84,0.00027388,2]
[328880740,1717949444548,-321.75766818,0.00027396,2]
[328880741,1717949444559,-170.08205433,0.00027396,2]
[328880743,1717949444571,-155.41106129,0.00027396,2]
[328880745,1717949444583,-217.32072534,0.00027396,2]
[328880747,1717949444593,-155.0,0.00027396,2]
[328880749,1717949444603,-208.21284041,0.00027396,2]
[328880751,1717949444615,-285.21638539,0.00027396,2]
[328880753,1717949444627,-1216.58199942,0.00027396,2]
[328880755,1717949444637,-161.10922433,0.00027396,2]
[328880757,1717949444649,-1690.87815907,0.00027396,2]
[328880759,1717949444659,-1459.77300412,0.00027396,2]
[328880761,1717949444669,-155.0,0.00027396,2]
[328880763,1717949444679,-312.27250908,0.00027396,2]
[328880765,1717949444689,-156.59372117,0.00027396,2]
[328880767,1717949444700,-163.1322461,0.00027396,2]
[328880769,1717949444710,-253.72066577,0.00027396,2]
[328880771,1717949444720,-1557.75840263,0.00027396,2]
[328880773,1717949444730,-155.46787492,0.00027396,2]
[328880775,1717949444740,-709.57669779,0.00027396,2]
[328880777,1717949444751,-225.09566688,0.00027396,2]
[328880779,1717949444760,-155.20249672,0.00027396,2]
[328880780,1717949444770,-376.94162738,0.00027396,2]
[328880789,1717949444813,-206.55754213,0.0002178,2]
[328880791,1717949444823,-251.45160725,0.0002178,2]
[328880793,1717949444833,-3546.53234748,0.00027396,2]
[328880794,1717949444843,-338.49898174,0.00027396,2]
[328880795,1717949444853,-2335.70101797,0.00027396,2]
[328880796,1717949444863,-1276.71140513,0.00027396,2]
[328880797,1717949444879,-537.53978765,0.00027396,2]
[328880798,1717949444888,-2193.53962537,0.00027396,2]
[328880799,1717949444898,-569.60320223,0.00027396,2]
[328880800,1717949444908,-196.33811405,0.00027396,2]
[328880801,1717949444918,-155.20856819,0.00027396,2]
[328880802,1717949444927,-630.52458214,0.00027397,2]
[328880803,1717949444936,-155.0,0.00027397,2]
[328880804,1717949444946,-582.69768999,0.00027397,2]
[328880805,1717949444955,-500.0,0.00027397,2]
[328880806,1717949444965,-500.0,0.00027397,2]
[328880807,1717949444974,-500.0,0.00027397,2]
[328880808,1717949444985,-500.0,0.00027397,2]
[328880809,1717949444995,-413.01227216,0.00027397,2]
[328880810,1717949445004,-219.26,0.00027397,2]
[328880811,1717949445015,-200.0,0.00027397,7]
[328880812,1717949445025,-150.0,0.00027397,2]
[328880813,1717949445035,-1382.70872343,0.00027398,2]
[328880814,1717949445045,-620.13052654,0.00027398,2]
[328880815,1717949445056,-247.26648662,0.00027398,2]
[328880816,1717949445066,-157.24740082,0.00027398,2]
[328880817,1717949445076,-489.06715365,0.00027398,2]
[328880818,1717949445086,-850.48262801,0.00027398,2]
[328880819,1717949445095,-156.16056917,0.00027398,2]
[328880820,1717949445105,-4475.72305211,0.00027398,2]
[328880821,1717949445115,-270.44327498,0.00027398,2]
[328880822,1717949445131,-302.65144367,0.00027398,2]
[328880823,1717949445140,-155.0,0.00027398,2]
[328880824,1717949445150,-241.25864268,0.00027398,2]
[328880825,1717949445160,-399.66343098,0.00027398,2]
[328880826,1717949445170,-544.77465953,0.00027398,2]
[328880827,1717949445180,-296.73910105,0.00027398,2]
[328880828,1717949445190,-218.8358322,0.00027398,2]
[328880829,1717949445200,-262.79244398,0.00027398,2]
[328880830,1717949445212,-327.87677653,0.00027398,2]
[328880831,1717949445222,-157.1937137,0.00027398,2]
[328880832,1717949445232,-326.10422737,0.00027398,2]
[328880833,1717949445242,-265.73742083,0.00027398,2]
[328880834,1717949445252,-807.68750229,0.00027398,2]
[328880835,1717949445262,-310.0,0.00027398,2]
[328880836,1717949445272,-524.31938049,0.00027398,2]
[328880837,1717949445283,-155.29812458,0.00027398,2]
[328880838,1717949445293,-155.27721819,0.00027398,2]
[328880839,1717949445303,-156.26606582,0.00027398,2]
[328880840,1717949445314,-811.7231,0.00027398,2]
[328880841,1717949445324,-250.0,0.000274,2]
[328880842,1717949445335,-600.0,0.000274,2]
[328880843,1717949445345,-591.21288238,0.000274,2]
[328880844,1717949445355,-38841.9517968,0.000274,2]
[328880845,1717949445368,-473.26955168,0.000274,2]
[328880846,1717949445383,-12010.34931744,0.000274,2]
[328880847,1717949445395,-1789.65068256,0.000274,2]
[328880848,1717949445408,-29528.51604299,0.000274,2]
[328880849,1717949445420,-6641.499832,0.000274,2]
[328880854,1717949445947,-92966.78567653,0.000274,2]
[328880855,1717949445958,-395.0,0.000274,2]
[328880856,1717949445968,-891.52845119,0.000274,2]
[328880857,1717949445979,-159.04757043,0.00027408,2]
[328880858,1717949445989,-160.79106966,0.00027421,2]
[328880859,1717949445999,-4191.98274037,0.00027489,2]
[328880860,1717949446009,-154.02592654,0.00027529,2]
[328880861,1717949446019,-587.52744056,0.00027552,2]
[328880862,1717949446029,-154.98577541,0.00027628,2]
[328880863,1717949446039,-163.08617108,0.00027656,2]
[328880864,1717949446049,-500.0,0.00027708,2]
[328880865,1717949446060,-500.0,0.00027708,2]
[328880866,1717949446070,-500.0,0.00027708,2]
[328880867,1717949446080,-500.0,0.00027708,2]
[328880868,1717949446090,-500.0,0.00027708,2]
[328880869,1717949446100,-500.0,0.00027708,2]
[328880870,1717949446110,-500.0,0.00027708,2]
[328880871,1717949446123,-500.0,0.00027708,2]
[328880872,1717949446133,-500.0,0.00027708,2]
[328880873,1717949446142,-500.0,0.00027708,2]
[328880874,1717949446152,-500.0,0.00027708,2]
[328880875,1717949446162,-500.0,0.00027708,2]
[328880876,1717949446172,-500.0,0.00027708,2]
[328880877,1717949446182,-500.0,0.00027708,2]
[328880878,1717949446192,-500.0,0.00027708,2]
[328880879,1717949446201,-500.0,0.00027708,2]
[328880880,1717949446211,-500.0,0.00027708,2]
[328880881,1717949446221,-500.0,0.00027708,2]
[328880882,1717949446231,-500.0,0.00027708,2]
[328880883,1717949446241,-500.0,0.00027708,2]
[328880884,1717949446251,-500.0,0.00027708,2]
[328880885,1717949446262,-500.0,0.00027708,2]
[328880886,1717949446272,-500.0,0.00027708,2]
[328880887,1717949446282,-500.0,0.00027708,2]
[328880888,1717949446292,-500.0,0.00027708,2]
[328880889,1717949446303,-500.0,0.00027708,2]
[328880890,1717949446313,-500.0,0.00027708,2]
[328880891,1717949446323,-500.0,0.00027708,2]
[328880892,1717949446332,-500.0,0.00027708,2]
[328880893,1717949446342,-500.0,0.00027708,2]
[328880894,1717949446352,-500.0,0.00027708,2]
[328880895,1717949446508,-500.0,0.00027708,2]
[328880896,1717949446519,-500.0,0.00027708,2]
[328880897,1717949446530,-500.0,0.00027708,2]
[328880898,1717949446541,-500.0,0.00027708,2]
[328880899,1717949446552,-500.0,0.00027708,2]
[328880900,1717949446562,-500.0,0.00027708,2]
[328880901,1717949446575,-500.0,0.00027708,2]
[328880902,1717949446586,-500.0,0.00027708,2]
[328880903,1717949446596,-500.0,0.00027708,2]
[328880904,1717949446606,-500.0,0.00027708,2]
[328880905,1717949446618,-500.0,0.00027708,2]
[328880906,1717949446630,-500.0,0.00027708,2]
[328880907,1717949446641,-500.0,0.00027708,2]
[328880908,1717949446653,-500.0,0.00027708,2]
[328880909,1717949446664,-500.0,0.00027708,2]
[328880910,1717949446675,-4191.98274033,0.00027708,2]
[328880911,1717949446685,-163.08617108,0.0002787,2]
[328880912,1717949446696,-266.10450733,0.000279,2]
[328880913,1717949446706,-4191.98274033,0.00027927,2]
[328880914,1717949446718,-152.85427655,0.00027994,2]
[328880915,1717949446729,-468.50367616,0.00028,2]
[328880916,1717949446739,-226.65406987,0.00028055,30]
[328880917,1717949446749,-151.0,0.00028062,7]
[328880918,1717949446761,-459.45748883,0.00028074,2]
[328880919,1717949446775,-100.1732397,0.00028074,2]
[328880920,1717949446786,-531.17617254,0.00028074,2]
[328880921,1717949446800,-352.48644447,0.00028074,2]
[328880922,1717949446810,-850.69,0.00028082,2]
[328880923,1717949446819,-850.69,0.00028082,2]
[328880924,1717949446829,-850.69,0.00028082,2]
[328880925,1717949446839,-841.61,0.00028082,2]
[328880926,1717949446848,-209.08,0.00028082,2]
[328880927,1717949446859,-153.34121951,0.000281,2]
[328880928,1717949446869,-150.0,0.00028118,2]
[328880929,1717949446880,-500.0,0.0002813,2]
[328880930,1717949446889,-500.0,0.0002813,2]
[328880931,1717949446898,-500.0,0.0002813,2]
[328880932,1717949446908,-289.38,0.0002813,2]
[328880933,1717949446917,-4191.98274033,0.00028147,2]
[328880934,1717949446928,-226.65406987,0.00028164,30]
[328880935,1717949446938,-226.65406987,0.00028301,30]
[328880936,1717949446948,-422.59,0.00028356,2]
[328880937,1717949446958,-905.13,0.00028356,2]
[328880938,1717949446969,-150.0,0.00028356,2]
[328880939,1717949446979,-164.17,0.00028356,2]
[328880940,1717949446989,-353.37,0.00028356,2]
[328880941,1717949446999,-150.0,0.00028356,2]
[328880942,1717949447009,-150.0,0.00028356,2]
[328880943,1717949447019,-422.59,0.00028356,2]
[328880944,1717949447029,-150.0,0.00028356,2]
[328880945,1717949447039,-150.0,0.00028356,2]
[328880946,1717949447049,-353.37,0.00028356,2]
[328880947,1717949447059,-150.0,0.00028356,2]
[328880948,1717949447068,-164.17,0.00028356,2]
[328880949,1717949447078,-422.59,0.00028356,2]
[328880950,1717949447088,-353.37,0.00028356,2]
[328880951,1717949447099,-150.0,0.00028356,2]
[328880952,1717949447109,-150.0,0.00028356,2]
[328880953,1717949447119,-164.17,0.00028356,2]
[328880954,1717949447131,-422.59,0.00028356,2]
[328880955,1717949447142,-150.0,0.00028356,2]
[328880956,1717949447153,-353.37,0.00028356,2]
[328880957,1717949447163,-150.0,0.00028356,2]
[328880958,1717949447173,-164.17,0.00028356,2]
[328880959,1717949447184,-150.0,0.00028356,2]
[328880960,1717949447194,-164.17,0.00028356,2]
[328880961,1717949447204,-353.37,0.00028356,2]
[328880962,1717949447215,-150.0,0.00028356,2]
[328880963,1717949447226,-422.59,0.00028356,2]
[328880964,1717949447236,-150.0,0.00028356,2]
[328880965,1717949447246,-843.78,0.00028356,2]
[328880966,1717949447257,-150.0,0.00028356,2]
[328880967,1717949447267,-695.53,0.00028356,2]
[328880968,1717949447278,-327.69,0.00028356,2]
[328880969,1717949447288,-300.0,0.00028356,2]
[328880970,1717949447299,-300.0,0.00028356,2]
[328880971,1717949447310,-152.85427655,0.00028362,2]
[328880972,1717949447320,-4191.98274033,0.00028366,2]
[328880973,1717949447331,-154.02592654,0.00028378,2]
[328880974,1717949447341,-226.65406987,0.00028411,30]
[328880975,1717949447352,-150.50249671,0.00028447,2]
[328880976,1717949447362,-1553.57903,0.0002851,2]
[328880977,1717949447372,-226.65406987,0.00028521,30]
[328880978,1717949447382,-4191.98274033,0.00028585,2]
[328880979,1717949447392,-226.65406987,0.00028658,30]
[328880980,1717949447403,-184.26629586,0.000287,2]
[328880981,1717949447412,-587.52744056,0.00028726,2]
[328880982,1717949447423,-300.903,0.00028759,2]
[328880983,1717949447433,-226.65406987,0.00028767,30]
[328880984,1717949447443,-500.0,0.00028787,2]
[328880985,1717949447453,-200.0,0.00028787,2]
[328880986,1717949447464,-183.13665554,0.00028795,7]
[328880987,1717949447474,-211.4669561,0.00028795,7]
[328880988,1717949447485,-224.90929074,0.00028795,7]
[328880989,1717949447495,-227.05512469,0.00028795,7]
[328880990,1717949447505,-171.00496755,0.00028795,7]
[328880991,1717949447516,-291.45099655,0.00028795,7]
[328880992,1717949447526,-155.43141599,0.00028795,7]
[328880993,1717949447536,-158.17438114,0.00028797,2]
[328880994,1717949447546,-1296.32722121,0.00028799,2]
[328880995,1717949447557,-150.0,0.00028799,2]
[328880996,1717949447568,-3000.0,0.00028799,8]
[328880997,1717949447583,-1122.70260775,0.00028799,8]
[328880998,1717949447594,-150.0,0.00028799,2]
[328880999,1717949447604,-300.0,0.00028799,2]
[328881000,1717949447615,-454.37478098,0.00028799,2]
[328881001,1717949447626,-150.0,0.00028799,2]
[328881002,1717949447636,-172.76028405,0.00028799,10]
[328881003,1717949447646,-29028.49135525,0.000288,13]
[328881004,1717949447660,-1960.87541914,0.000288,13]
[328881005,1717949447674,-1185.57,0.000288,13]
[328881006,1717949447724,-2e-08,0.000288,13]
[328881007,1717949447737,-371.88291753,0.000288,13]
[328881008,1717949447750,-1324.8,0.000288,13]
[328881009,1717949447789,-1803.08585291,0.000288,13]
[328881013,1717950602034,-158.3464596,0.00016373,2]
[328881014,1717950618916,1641.6535404,0.00016291,2]
[328881017,1717950632278,-3075.1159696,0.00016291,2]
[328881018,1717950632288,-156.68056918,0.00016374,2]
[328881019,1717950632299,-12580.7136,0.00016458,2]
[328881020,1717950632309,-656.22317187,0.00016557,2]
[328881021,1717950632319,-885.1882934,0.00016988,2]
[328881022,1717950632329,-531.15011943,0.00017076,2]
[328881023,1717950632339,-18254.41023292,0.00017259,2]
[328881024,1717950632350,-156.04,0.00019438,2]
[328881025,1717950632360,-226.67450997,0.000201,2]
[328881026,1717950632372,-2553.27367181,0.000216,2]
[328881027,1717950632381,-7629.04732687,0.00021781,7]
[328881028,1717950632392,-161.01822109,0.00021781,2]
[328881029,1717950632402,-500.0,0.00022602,2]
[328881030,1717950632412,-394.02,0.00022615,2]
[328881031,1717950632422,-1737.96869295,0.0002329,2]
[328881032,1717950632432,-200.0,0.00023501,2]
[328881033,1717950632442,-689.96,0.00023509,2]
[328881034,1717950632452,-1030.98382353,0.00023536,2]
[328881035,1717950632463,-500.0,0.00023698,2]
[328881036,1717950632474,-968.89,0.00023758,2]
[328881037,1717950632484,-168.77,0.00023958,2]
[328881038,1717950632494,-23900.0,0.00024005,2]
[328881039,1717950632504,-200.0,0.00024045,2]
[328881040,1717950632514,-250.0,0.00024145,2]
[328881041,1717950632524,-1000.0,0.00024164,2]
[328881042,1717950632534,-155.882,0.00024216,2]
[328881043,1717950632544,-2177.42,0.0002422,2]
[328881044,1717950632554,-703.31,0.0002422,2]
[328881045,1717950632564,-2038.39,0.00024281,2]
[328881046,1717950632574,-250.0,0.00024328,2]
[328881047,1717950632584,-205.54,0.00024384,2]
[328881048,1717950632594,-153.12,0.00024384,2]
[328881049,1717950632604,-250.0,0.00024438,2]
[328881050,1717950632614,-175.48,0.00024554,2]
[328881051,1717950632624,-500.0,0.00024567,2]
[328881052,1717950632633,-150.0,0.00024603,2]
[328881053,1717950632644,-632.4545019,0.00024728,2]
[328881054,1717950632654,-500.0,0.00024728,2]
[328881055,1717950632665,-500.0,0.00024728,2]
[328881056,1717950632675,-500.0,0.00024728,2]
[328881057,1717950632685,-300.0,0.00024728,2]
[328881058,1717950632695,-1701.42,0.00024729,2]
[328881059,1717950632705,-24513.462,0.00024729,2]
[328881060,1717950632715,-500.0,0.00024794,2]
[328881061,1717950632724,-200.0,0.00024806,2]
[328881062,1717950632734,-3082.05,0.00024841,2]
[328881063,1717950632744,-394.02,0.00024879,2]
[328881064,1717950632754,-456.22,0.00024931,2]
[328881065,1717950632764,-11731.0,0.000251,5]
[328881066,1717950632773,-300.0,0.00025121,2]
[328881067,1717950632783,-1276.95996531,0.00025202,2]
[328881068,1717950632794,-14470.49920023,0.00025203,2]
[328881069,1717950632804,-1000.0,0.00025205,2]
[328881070,1717950632814,-187.88,0.0002533,2]
[328881071,1717950632825,-155.882,0.00025487,2]
[328881072,1717950632835,-382.47,0.0002552,2]
[328881073,1717950632845,-382.47,0.0002559,2]
[328881074,1717950632855,-382.47,0.0002566,2]
[328881075,1717950632864,-382.47,0.0002573,2]
[328881076,1717950632874,-382.47,0.000258,2]
[328881077,1717950632884,-382.47,0.0002587,2]
[328881079,1717950632896,-529.27933224,0.0002589,2]
[328881089,1717950632905,-382.47,0.0002594,2]
[328881090,1717950633075,-382.47,0.0002601,2]
[328881091,1717950633086,-382.47,0.0002608,2]
[328881092,1717950633099,-152.0,0.00026139,3]
[328881093,1717950633110,-382.47,0.0002615,2]
[328881094,1717950633120,-287.25106551,0.00026215,2]
[328881095,1717950633131,-752.03196948,0.00026215,2]
[328881096,1717950633141,-158.08203132,0.00026218,2]
[328881097,1717950633152,-382.47,0.0002622,2]
[328881098,1717950633164,-1061.45406195,0.0002626,2]
[328881099,1717950633176,-168.87,0.00026279,2]
[328881100,1717950633186,-382.47,0.0002629,2]
[328881101,1717950633197,-53727.34,0.00026301,2]
[328881102,1717950633206,-382.47,0.0002636,2]
[328881103,1717950633216,-382.47,0.0002643,2]
[328881104,1717950633226,-300.0,0.00026491,2]
[328881105,1717950633237,-382.47,0.000265,2]
[328881106,1717950633247,-382.47,0.0002657,2]
[328881107,1717950633257,-152.85427655,0.00026585,2]
[328881108,1717950633267,-1061.45406194,0.00026587,2]
[328881109,1717950633278,-382.47,0.0002664,2]
[328881110,1717950633288,-382.47,0.0002671,2]
[328881111,1717950633298,-153.34121951,0.00026738,2]
[328881112,1717950633308,-382.47,0.0002678,2]
[328881113,1717950633318,-500.0,0.000268,2]
[328881114,1717950633328,-500.0,0.000268,2]
[328881115,1717950633338,-500.0,0.000268,2]
[328881116,1717950633348,-500.0,0.000268,2]
[328881117,1717950633358,-500.0,0.000268,2]
[328881118,1717950633369,-500.0,0.000268,2]
[328881119,1717950633379,-500.0,0.000268,2]
[328881120,1717950633392,-500.0,0.000268,2]
[328881121,1717950633403,-500.0,0.000268,2]
[328881122,1717950633417,-500.0,0.000268,2]
[328881123,1717950633426,-500.0,0.000268,2]
[328881124,1717950633436,-500.0,0.000268,2]
[328881125,1717950633446,-500.0,0.000268,2]
[328881126,1717950633456,-500.0,0.000268,2]
[328881127,1717950633466,-500.0,0.000268,2]
[328881128,1717950633476,-500.0,0.000268,2]
[328881129,1717950633487,-500.0,0.000268,2]
[328881130,1717950633498,-500.0,0.000268,2]
[328881131,1717950633508,-500.0,0.000268,2]
[328881132,1717950633518,-500.0,0.000268,2]
[328881133,1717950633528,-500.0,0.000268,2]
[328881134,1717950633538,-500.0,0.000268,2]
[328881135,1717950633549,-500.0,0.000268,2]
[328881136,1717950633559,-500.0,0.000268,2]
[328881137,1717950633569,-500.0,0.000268,2]
[328881138,1717950633582,-500.0,0.000268,2]
[328881139,1717950633593,-371.0,0.000268,2]
[328881140,1717950633604,-153.34121951,0.00026819,2]
[328881141,1717950633614,-382.47,0.0002685,2]
[328881142,1717950633626,-166.66666667,0.00026857,2]
[328881143,1717950633637,-1061.45406194,0.00026913,2]
[328881144,1717950633648,-163.08617108,0.0002698,2]
[328881145,1717950633659,-3407.539151,0.00027,2]
[328881146,1717950633674,-4029.88662948,0.00027,2]
[328881147,1717950633684,-180.0,0.00027005,2]
[328881148,1717950633695,-175.48,0.0002701,2]
[328881149,1717950633706,-17796.04120922,0.00027018,2]
[328881150,1717950633716,-2038.39,0.0002702,2]
[328881151,1717950633726,-167.0,0.00027024,2]
[328881152,1717950633736,-163.08617108,0.0002705,2]
[328881153,1717950633746,-159.054371,0.00027089,2]
[328881154,1717950633756,-164.653402,0.00027089,2]
[328881155,1717950633765,-180.343855,0.00027089,2]
[328881156,1717950633775,-850.69,0.00027123,2]
[328881157,1717950633785,-417.34,0.00027123,2]
[328881158,1717950633796,-850.69,0.00027123,2]
[328881159,1717950633806,-394.02,0.00027143,2]
[328881160,1717950633817,-1000.0,0.00027184,2]
[328881161,1717950633827,-1061.45406194,0.0002724,2]
[328881162,1717950633838,-218.05,0.00027339,2]
[328881163,1717950633849,-893.21093344,0.0002736,2]
[328881164,1717950633859,-2476.193,0.00027362,2]
[328881165,1717950633870,-11087.22,0.0002737,2]
[328881166,1717950633880,-163.08617108,0.00027387,2]
[328881167,1717950633892,-290.48392107,0.0002739,2]
[328881168,1717950633902,-202.16,0.00027393,2]
[328881169,1717950633913,-237.1548638,0.00027397,2]
[328881170,1717950633924,-150.0,0.00027397,2]
[328881171,1717950633935,-177.95839779,0.00027398,2]
[328881172,1717950633946,-186.30175631,0.00027398,2]
[328881173,1717950633956,-3012.21596439,0.00027399,2]
[328881174,1717950633966,-839.64411282,0.00027399,2]
[328881175,1717950633976,-324.71263154,0.00027399,2]
[328881176,1717950633986,-163.08617108,0.00027514,2]
[328881177,1717950633996,-153.34121951,0.00027557,2]
[328881178,1717950634006,-1061.45406194,0.00027567,2]
[328881179,1717950634017,-154.46740009,0.00027586,2]
[328881180,1717950634027,-154.46740009,0.00027638,2]
[328881181,1717950634038,-153.34121951,0.00027639,2]
[328881182,1717950634048,-1061.45406194,0.00027893,2]
[328881183,1717950634058,-2000.0,0.000279,2]
[328881184,1717950634068,-266.10450733,0.00027981,2]
[328881185,1717950634080,-181.39653835,0.00027982,2]
[328881186,1717950634091,-153.34121952,0.00028024,2]
[328881187,1717950634106,-151.0,0.00028038,7]
[328881188,1717950634116,-417.34,0.00028082,2]
[328881189,1717950634126,-850.69,0.00028082,2]
[328881190,1717950634137,-417.34,0.00028082,2]
[328881191,1717950634147,-417.34,0.00028082,2]
[328881192,1717950634157,-412.54,0.00028082,2]
[328881193,1717950634171,-152.0,0.00028087,4]
[328881194,1717950634182,-503.66765567,0.00028089,2]
[328881195,1717950634192,-150.0,0.00028118,2]
[328881196,1717950634202,-158.17438114,0.00028173,2]
[328881197,1717950634212,-1061.45406194,0.0002822,2]
[328881198,1717950634223,-2611.20547856,0.00028224,2]
[328881199,1717950634232,-159.04757043,0.00028317,2]
[328881200,1717950634242,-181.39653833,0.00028341,2]
[328881201,1717950634252,-150.0,0.00028356,2]
[328881202,1717950634262,-150.0,0.00028356,2]
[328881203,1717950634273,-150.0,0.00028356,2]
[328881204,1717950634282,-150.0,0.00028356,2]
[328881205,1717950634293,-150.0,0.00028356,2]
[328881206,1717950634303,-150.0,0.00028356,2]
[328881207,1717950634313,-150.0,0.00028356,2]
[328881208,1717950634323,-150.0,0.00028356,2]
[328881209,1717950634334,-503.66765567,0.00028367,2]
[328881210,1717950634344,-158.08203133,0.00028377,2]
[328881211,1717950634354,-556.5,0.0002849,6]
[328881212,1717950634364,-225.67,0.0002849,6]
[328881213,1717950634374,-154.02592654,0.00028499,2]
[328881214,1717950634384,-185.16173344,0.00028507,2]
[328881215,1717950634394,-152.85427656,0.00028525,2]
[328881216,1717950634404,-1061.45406194,0.00028547,2]
[328881217,1717950634416,-315.45655484,0.000286,2]
[328881218,1717950634426,-503.66765567,0.00028644,2]
[328881219,1717950634436,-156.5803339,0.00028698,2]
[328881220,1717950634446,-158.26733888,0.00028699,2]
[328881221,1717950634456,-71116.4453,0.000287,2]
[328881222,1717950634466,-71177.8498,0.000287,2]
[328881223,1717950634477,-1000.0,0.000287,2]
[328881224,1717950634487,-2095.99137022,0.000287,2]
[328881225,1717950634497,-7500.0,0.000287,2]
[328881226,1717950634507,-181.39653833,0.000287,2]
[328881227,1717950634517,-185.61446945,0.000287,2]
[328881228,1717950634527,-829.38072415,0.000287,2]
[328881229,1717950634536,-2095.99137016,0.00028745,2]
[328881230,1717950634546,-500.0,0.00028787,2]
[328881231,1717950634556,-200.0,0.00028787,2]
[328881232,1717950634565,-151.84,0.0002879,2]
[328881233,1717950634576,-2095.99137016,0.00028791,2]
[328881234,1717950634586,-154.02592654,0.00028795,2]
[328881235,1717950634596,-150.0,0.00028799,2]
[328881236,1717950634606,-1294.64919,0.00028799,2]
[328881237,1717950634616,-87633.74083718,0.000288,2]
[328881238,1717950634644,-11731.0,0.000288,2]
[328881239,1717950634665,-5401.77045646,0.000288,2]
[328881240,1717950634681,-17154.89141557,0.000288,2]
[328881241,1717950638410,-6399.90396788,0.000288,2]
[328881242,1717950638790,-572.75105103,0.000288,2]
[328881248,1717950642118,-1656.33443463,0.000288,2]
[328881249,1717950642403,-428.36392076,0.000288,2]
[328881250,1717950642584,-5854.6869003,0.000288,2]
[328881251,1717950642597,-4906.4475,0.000288,2]
[328881252,1717950642610,-10624.1720606,0.000288,2]
[328881261,1717950643655,-988.0,0.000288,2]
[328881262,1717950643818,-7527.52000004,0.000288,2]
[328881263,1717950643956,-797.713,0.000288,2]
[328881264,1717950644395,-87971.55426363,0.000288,2]
[328881265,1717950644437,-6462.47689804,0.000288,2]